bitfinex-derivatives/quotes_SOLF0:USTF0_20250606
["timestamp","ask_amount","ask_price","bid_price","bid_amount"]
[1749217643669,6.5815,151.85,151.84,0.04897867]
[1749217643867,12.04538047,151.85,151.77,12.04538047]
[1749217644068,12.04538047,151.85,151.79,6.5837]
[1749217644871,6.5825,151.83,151.8,6.62575436]
[1749217645370,0.04328685,151.84,151.8,6.62575436]
[1749217645371,0.04328685,151.84,151.81,6.5831]
[1749217645567,12.08866732,151.84,151.8,0.04215436]
[1749217645773,12.04538047,151.82,151.65,12.04538047]
[1749217645972,12.04538047,151.82,151.72,14.25528047]
[1749217646166,66.96538047,151.82,151.72,14.25528047]
[1749217646368,12.04538047,151.8,151.72,12.04538047]
[1749217646669,12.04538047,151.8,151.74,6.586]
[1749217646871,0.04539086,151.79,151.75,0.04411279]
[1749217647067,6.5852,151.77,151.75,0.04411279]
[1749217647974,20.72998047,151.78,151.75,0.04411279]
[1749217649080,14.14528047,151.78,151.75,6.62991279]
[1749217649271,14.14528047,151.78,151.75,0.04411279]
[1749217650175,20.73008047,151.78,151.75,0.04411279]
[1749217650680,6.5854,151.76,151.75,0.04411279]
[1749217650975,14.14528047,151.78,151.75,0.04411279]
[1749217651177,16.26168047,151.78,151.75,0.04411279]
[1749217651871,22.84658047,151.78,151.75,0.04411279]
[1749217652373,16.26168047,151.78,151.75,0.04411279]
[1749217652678,4.2163,151.78,151.75,0.04411279]
[1749217653581,16.26168047,151.78,151.75,0.04411279]
[1749217654280,22.84638047,151.78,151.75,0.04411279]
[1749217654680,2.0999,151.78,151.75,0.04411279]
[1749217655074,8.6845,151.78,151.75,0.04411279]
[1749217655272,2.0999,151.78,151.75,0.04411279]
[1749217655573,12.04538047,151.77,151.6,441.22]
[1749217655771,12.04538047,151.75,151.65,12.04538047]
[1749217655971,12.04538047,151.73,151.65,12.04538047]
[1749217656376,6.5878,151.71,151.63,4.26]
[1749217656577,0.04556793,151.69,151.65,0.04159945]
[1749217658681,6.63426793,151.69,151.65,0.04159945]
[1749217659180,6.589,151.68,151.65,0.04159945]
[1749217659592,0.04556793,151.69,151.65,0.04159945]
[1749217660187,6.5895,151.67,151.65,0.04159945]
[1749217660394,0.04556793,151.69,151.65,0.04159945]
[1749217660693,6.63426793,151.69,151.66,6.5895]
[1749217660998,6.63426793,151.69,151.65,0.04159945]
[1749217661293,0.04556793,151.69,151.68,6.5889]
[1749217661498,0.04556793,151.69,151.65,0.04159945]
[1749217661690,0.04556793,151.69,151.66,6.5895]
[1749217661895,0.04556793,151.69,151.65,12.08697992]
[1749217662095,0.04556793,151.69,151.65,0.04159945]
[1749217662296,0.04556793,151.69,151.65,12.08697992]
[1749217662990,0.04556793,151.69,151.68,6.5889]
[1749217667903,53.28,151.74,151.72,6.587]
[1749217668104,6.3721,151.77,151.72,6.587]
[1749217668293,6.5861,151.75,151.72,6.587]
[1749217668603,6.3721,151.77,151.71,6.5873]
[1749217668794,0.04598679,151.76,151.72,0.04986862]
[1749217669294,0.04598679,151.76,151.72,6.63686862]
[1749217669495,0.04598679,151.76,151.72,0.04986862]
[1749217670498,0.04598679,151.76,151.72,12.09524909]
[1749217670899,6.5859,151.75,151.72,0.04986862]
[1749217671102,0.04598679,151.76,151.72,0.04986862]
[1749217671397,12.04538047,151.74,151.63,2.1142]
[1749217671604,12.04538047,151.72,151.63,67.43958047]
[1749217672398,6.5884,151.69,151.66,0.04497366]
[1749217673305,6.589,151.68,151.66,0.04497366]
[1749217673904,6.5886,151.69,151.66,0.04497366]
[1749217674104,0.04596118,151.7,151.66,0.04497366]
[1749217674506,0.04596118,151.7,151.69,12.04538047]
[1749217674808,0.04596118,151.7,151.69,18.63378047]
[1749217675009,0.04596118,151.7,151.66,0.04497366]
[1749217675303,0.04596118,151.7,151.68,12.04538047]
[1749217675900,0.04596118,151.7,151.69,6.5884]
[1749217676407,53.28,151.74,151.68,12.04538047]
[1749217676908,59.8666,151.74,151.69,6.588]
[1749217677209,53.28,151.74,151.67,14.11678047]
[1749217677405,0.04742292,151.72,151.69,0.04600877]
[1749217677611,0.04742292,151.72,151.69,6.63410877]
[1749217677813,0.04742292,151.72,151.69,0.04600877]
[1749217678107,0.04742292,151.72,151.69,6.63410877]
[1749217678503,0.04742292,151.72,151.69,12.09138924]
[1749217678811,0.04742292,151.72,151.69,18.67948924]
[1749217679709,0.04742292,151.72,151.7,6.5879]
[1749217680310,0.04742292,151.72,151.69,0.04600877]
[1749217681205,6.63482292,151.72,151.69,0.04600877]
[1749217681622,0.04742292,151.72,151.69,0.04600877]
[1749217681907,0.04742292,151.72,151.63,2.1142]
[1749217681908,12.04538047,151.7,151.63,2.1142]
[1749217682612,12.04538047,151.68,151.62,53.3]
[1749217682808,12.04538047,151.66,151.61,2.2012]
[1749217683006,6.5909,151.64,151.62,0.04968179]
[1749217683209,6.5909,151.64,151.61,0.04561103]
[1749217683607,0.04319306,151.65,151.61,0.04561103]
[1749217684008,6.5915,151.62,151.61,0.04561103]
[1749217686010,6.5928,151.59,151.58,2.74723823]
[1749217686503,12.04538047,151.6,151.49,58.44460329]
[1749217686706,12.04538047,151.55,151.49,56.7539]
[1749217686904,12.04538047,151.53,151.5,0.04906677]
[1749217687105,12.09106432,151.53,151.5,0.04967614]
[1749217687311,0.04568385,151.53,151.5,0.04967614]
[1749217688414,2.2372,151.64,151.52,12.04538047]
[1749217688613,54.66,151.63,151.54,12.04538047]
[1749217688817,66.70538047,151.63,151.54,12.04538047]
[1749217689004,54.66,151.63,151.5,52.48]
[1749217689210,54.66,151.63,151.56,12.04538047]
[1749217689406,0.04751733,151.61,151.58,0.04392314]
[1749217690719,6.63971733,151.61,151.58,0.04392314]
[1749217691415,0.04751733,151.61,151.58,6.63712314]
[1749217692010,0.04751733,151.61,151.6,6.5923]
[1749217692217,0.04751733,151.61,151.6,18.63768047]
[1749217692815,52.48,151.68,151.6,12.04538047]
[1749217693015,6.5898,151.66,151.6,12.04538047]
[1749217693315,52.48,151.68,151.61,6.5918]
[1749217693520,52.48,151.68,151.6,12.04538047]
[1749217693711,12.04538047,151.67,151.58,12.04538047]
[1749217693918,0.04646416,151.64,151.61,0.05019235]
[1749217694218,6.63736416,151.64,151.61,0.05019235]
[1749217694419,12.04538047,151.63,151.61,0.05019235]
[1749217694611,12.04538047,151.63,151.53,5.96460329]
[1749217694612,12.04538047,151.63,151.53,16.46028047]
[1749217694816,64.52538047,151.63,151.53,16.46028047]
[1749217695017,6.5927,151.6,151.56,6.594]
[1749217695721,6.63906983,151.6,151.56,6.63732234]
[1749217696312,6.5928,151.59,151.56,6.63732234]
[1749217696612,0.04636983,151.6,151.56,6.63732234]
[1749217697018,6.63886983,151.6,151.56,0.04332234]
[1749217697224,0.04636983,151.6,151.56,0.04332234]
[1749217697615,6.5929,151.59,151.56,0.04332234]
[1749217698017,0.04636983,151.6,151.56,0.04332234]
[1749217698725,6.5936,151.57,151.56,0.04332234]
[1749217699118,6.596,151.52,151.5,12.04538047]
[1749217699719,6.5956,151.53,151.5,12.04538047]
[1749217699913,12.04538047,151.58,151.5,12.04538047]
[1749217700122,0.04356072,151.56,151.52,0.04593671]
[1749217700827,6.5946,151.55,151.52,0.04593671]
[1749217701022,0.04356072,151.56,151.52,0.04593671]
[1749217701322,6.5952,151.54,151.52,0.04593671]
[1749217703220,0.04356072,151.56,151.52,0.04593671]
[1749217703820,6.5954,151.53,151.52,0.04593671]
[1749217704625,6.5946,151.55,151.52,0.04593671]
[1749217704820,0.04356072,151.56,151.52,0.04593671]
[1749217705420,6.5954,151.53,151.52,0.04593671]
[1749217707325,6.5951,151.54,151.52,0.04593671]
[1749217707523,2.0632,151.55,151.52,0.04593671]
[1749217708032,0.04356072,151.56,151.52,0.04593671]
[1749217708424,0.04356072,151.56,151.52,6.64153671]
[1749217708625,0.04356072,151.56,151.52,0.04593671]
[1749217708933,12.04538047,151.53,151.44,6.5991]
[1749217709230,12.04538047,151.51,151.41,4.3402]
[1749217709425,6.5976,151.48,151.43,12.04538047]
[1749217709623,12.04538047,151.51,151.43,12.04538047]
[1749217709826,0.04305237,151.49,151.45,6.64394918]
[1749217710027,0.04305237,151.49,151.45,0.04534918]
[1749217710427,6.5977,151.48,151.45,0.04534918]
[1749217710629,0.04305237,151.49,151.45,0.04534918]
[1749217711022,6.64055237,151.49,151.45,0.04534918]
[1749217711431,6.64055237,151.49,151.45,6.64394918]
[1749217711627,0.04305237,151.49,151.45,0.04534918]
[1749217712531,6.5984,151.46,151.45,0.04534918]
[1749217712930,0.04305237,151.49,151.45,0.04534918]
[1749217713530,6.5984,151.46,151.45,0.04534918]
[1749217713934,0.04305237,151.49,151.45,0.04534918]
[1749217714132,6.5983,151.47,151.45,0.04534918]
[1749217714536,0.04305237,151.49,151.45,0.04534918]
[1749217715426,6.5982,151.47,151.45,0.04534918]
[1749217715847,0.04305237,151.49,151.45,0.04534918]
[1749217716026,6.5983,151.47,151.45,0.04534918]
[1749217716631,0.04305237,151.49,151.45,0.04534918]
[1749217717632,6.598,151.47,151.45,0.04534918]
[1749217717940,0.04305237,151.49,151.45,12.09072965]
[1749217718836,0.04305237,151.49,151.45,18.68962965]
[1749217719232,6.5981,151.47,151.45,0.04534918]
[1749217719432,0.04305237,151.49,151.45,0.04534918]
[1749217720339,6.5977,151.48,151.45,6.64394918]
[1749217720940,0.04305237,151.49,151.45,0.04534918]
[1749217722138,0.04305237,151.49,151.45,12.09072965]
[1749217722645,379.92,151.56,151.47,12.04538047]
[1749217722940,62.86538047,151.58,151.49,12.04538047]
[1749217723145,6.5953,151.54,151.51,6.596]
[1749217723646,6.5954,151.53,151.51,0.04257421]
[1749217723839,0.04675334,151.54,151.51,0.04257421]
[1749217724035,12.09213381,151.54,151.51,0.04257421]
[1749217724540,6.5958,151.52,151.51,0.04257421]
[1749217725533,18.64118047,151.52,151.51,0.04257421]
[1749217726638,18.64118047,151.52,151.51,7.421e-05]
[1749217727447,6.5958,151.52,151.51,7.421e-05]
[1749217727740,18.64118047,151.52,151.51,7.421e-05]
[1749217728337,6.5958,151.52,151.51,7.421e-05]
[1749217728539,18.64118047,151.52,151.51,7.421e-05]
[1749217728740,6.5958,151.52,151.51,7.421e-05]
[1749217729341,6.64185334,151.54,151.51,7.421e-05]
[1749217729842,0.04675334,151.54,151.51,7.421e-05]
[1749217730140,0.04675334,151.54,151.51,12.04545468]
[1749217730853,0.04675334,151.54,151.51,7.421e-05]
[1749217731343,0.04675334,151.54,151.52,12.04538047]
[1749217731545,0.04675334,151.54,151.52,18.64108047]
[1749217732448,6.64175334,151.54,151.51,6.59617421]
[1749217732645,6.64175334,151.54,151.51,7.421e-05]
[1749217732838,0.04675334,151.54,151.51,7.421e-05]
[1749217733555,0.04675334,151.54,151.53,6.5954]
[1749217733751,53.0115,151.6,151.52,12.04538047]
[1749217734048,6.5937,151.57,151.54,18.64008047]
[1749217734452,6.5937,151.57,151.54,6.5947]
[1749217734645,6.64436618,151.57,151.54,6.64346606]
[1749217735045,0.05066618,151.57,151.54,0.04876606]
[1749217736052,6.5941,151.56,151.54,0.04876606]
[1749217736644,0.05066618,151.57,151.54,6.64346606]
[1749217737151,6.64436618,151.57,151.54,6.64356606]
[1749217737355,0.05066618,151.57,151.54,0.04876606]
[1749217737753,0.05066618,151.57,151.55,6.5942]
[1749217738756,0.05066618,151.57,151.56,6.5941]
[1749217739851,6.5917,151.62,151.56,12.04538047]
[1749217740250,12.04538047,151.66,151.53,55.06460329]
[1749217740456,12.04538047,151.66,151.58,12.04538047]
[1749217740757,0.04675949,151.64,151.6,0.04928139]
[1749217740955,0.04675949,151.64,151.62,6.5912]
[1749217741160,0.04675949,151.64,151.6,0.04928139]
[1749217741564,12.09213996,151.64,151.6,0.04928139]
[1749217741764,12.04538047,151.62,151.6,0.04928139]
[1749217742264,6.5929,151.59,151.56,6.594]
[1749217742460,12.04538047,151.6,151.53,55.06460329]
[1749217742661,6.5938,151.57,151.54,6.5947]
[1749217742963,12.04538047,151.6,151.53,49.1]
[1749217743267,6.63572391,151.58,151.55,6.64373039]
[1749217743455,6.63572391,151.58,151.55,0.04943039]
[1749217744062,0.04222391,151.58,151.55,0.04943039]
[1749217744464,6.63562391,151.58,151.55,0.04943039]
[1749217744862,0.04222391,151.58,151.55,0.04943039]
[1749217745067,6.594,151.57,151.55,0.04943039]
[1749217745258,0.04222391,151.58,151.55,0.04943039]
[1749217745570,0.04222391,151.58,151.55,12.09481086]
[1749217745764,12.04538047,151.65,151.59,6.5925]
[1749217745965,49.1,151.66,151.59,12.04538047]
[1749217746161,6.5916,151.62,151.59,12.04538047]
[1749217746365,6.5916,151.62,151.59,18.63788047]
[1749217746565,6.592,151.61,151.59,12.04538047]
[1749217746865,0.04504689,151.62,151.58,0.04540534]
[1749217747262,6.5928,151.59,151.58,0.04540534]
[1749217747460,12.04538047,151.59,151.52,6.5956]
[1749217747662,6.5948,151.55,151.51,2.0953]
[1749217748070,6.5948,151.55,151.52,6.5957]
[1749217748267,6.5948,151.55,151.51,2.0953]
[1749217748468,6.63768937,151.55,151.51,2.1396149]
[1749217748860,0.04288937,151.55,151.51,2.1396149]
[1749217749061,0.04288937,151.55,151.51,0.0443149]
[1749217750666,0.04288937,151.55,151.51,12.08969537]
[1749217750864,0.04288937,151.55,151.53,12.04538047]
[1749217751366,0.04288937,151.55,151.54,6.595]
[1749217752668,0.04288937,151.55,151.53,18.64058047]
[1749217752876,0.04288937,151.55,151.51,0.0443149]
[1749217754374,6.63768937,151.55,151.52,6.5958]
[1749217754575,0.04288937,151.55,151.51,0.0443149]
[1749217754872,0.04288937,151.55,151.53,6.5952]
[1749217755274,0.04288937,151.55,151.51,0.0443149]
[1749217755871,6.63748937,151.55,151.52,6.5956]
[1749217756068,0.04288937,151.55,151.51,0.0443149]
[1749217756879,6.595,151.54,151.51,6.6403149]
[1749217757268,6.595,151.54,151.51,0.0443149]
[1749217757673,6.63758937,151.55,151.51,0.0443149]
[1749217757974,0.04288937,151.55,151.51,0.0443149]
[1749217758280,0.04288937,151.55,151.52,6.5956]
[1749217758582,0.04288937,151.55,151.51,0.0443149]
[1749217759080,0.04288937,151.55,151.52,12.04538047]
[1749217759474,0.04288937,151.55,151.51,0.0443149]
[1749217760774,6.5953,151.54,151.51,6.6403149]
[1749217761177,0.04288937,151.55,151.51,0.0443149]
[1749217761480,0.04288937,151.55,151.53,6.5952]
[1749217761981,6.63738937,151.55,151.51,0.0443149]
[1749217762376,6.595,151.54,151.52,6.5955]
[1749217762573,0.04288937,151.55,151.52,6.5955]
[1749217762879,0.04288937,151.55,151.53,6.5951]
[1749217763669,12.04538047,151.67,151.54,59.46538047]
[1749217763882,16.29018047,151.67,151.59,12.04538047]
[1749217764080,6.5917,151.62,151.59,18.63798047]
[1749217764380,6.5917,151.62,151.59,12.04538047]
[1749217764579,2.0909,151.66,151.6,6.5922]
[1749217764776,0.04644743,151.62,151.6,6.5922]
[1749217764983,0.04644743,151.62,151.61,12.04538047]
[1749217765182,0.04644743,151.62,151.61,18.63728047]
[1749217765874,47.42,151.68,151.63,6.5908]
[1749217766077,6.5897,151.66,151.63,12.04538047]
[1749217766579,47.42,151.68,151.64,6.5906]
[1749217766780,6.5899,151.66,151.64,0.05053774]
[1749217767079,47.46176357,151.68,151.64,0.05053774]
[1749217767876,12.04538047,151.65,151.57,6.09079241]
[1749217768078,12.04538047,151.63,151.56,6.09079241]
[1749217768385,59.46538047,151.63,151.55,47.42]
[1749217768673,59.46538047,151.63,151.57,6.5933]
[1749217768872,6.5922,151.61,151.58,0.04789203]
[1749217769282,6.5922,151.61,151.58,6.64109203]
[1749217769472,6.5924,151.6,151.58,0.04789203]
[1749217769775,0.04264582,151.62,151.59,6.5927]
[1749217769984,0.04264582,151.62,151.58,0.04789203]
[1749217770375,0.04264582,151.62,151.59,6.5927]
[1749217770675,6.63434582,151.62,151.59,6.5927]
[1749217771584,0.04264582,151.62,151.6,6.5923]
[1749217771781,0.04264582,151.62,151.58,12.0932725]
[1749217771980,6.63444582,151.62,151.59,6.5927]
[1749217772281,0.04264582,151.62,151.58,12.0932725]
[1749217772483,0.04264582,151.62,151.58,0.04789203]
[1749217772782,0.04264582,151.62,151.6,12.04538047]
[1749217773081,0.04264582,151.62,151.6,18.63748047]
[1749217773287,0.04264582,151.62,151.6,12.04538047]
[1749217773473,4.3229,151.71,151.58,0.04789203]
[1749217773672,2.254,151.73,151.66,12.04538047]
[1749217773983,49.48,151.74,151.68,12.04538047]
[1749217774581,0.05029011,151.73,151.69,0.04852753]
[1749217775582,6.5875,151.72,151.69,0.04852753]
[1749217775880,0.05029011,151.73,151.69,0.04852753]
[1749217776685,6.63739011,151.73,151.69,0.04852753]
[1749217776979,0.05029011,151.73,151.69,0.04852753]
[1749217778182,6.588,151.7,151.69,0.04852753]
[1749217779182,0.05029011,151.73,151.69,12.093908]
[1749217779384,0.05029011,151.73,151.69,0.04852753]
[1749217779580,0.05029011,151.73,151.69,12.093908]
[1749217779789,0.05029011,151.73,151.69,0.04852753]
[1749217779986,0.05029011,151.73,151.69,12.093908]
[1749217780684,6.63709011,151.73,151.69,18.682008]
[1749217781083,0.05029011,151.73,151.69,12.093908]
[1749217781285,6.63699011,151.73,151.69,18.682208]
[1749217781488,0.05029011,151.73,151.7,12.04538047]
[1749217781984,0.05029011,151.73,151.69,0.04852753]
[1749217782185,0.05029011,151.73,151.71,12.04538047]
[1749217782785,49.48,151.78,151.71,12.04538047]
[1749217782986,4.4634,151.81,151.73,12.04538047]
[1749217783487,49.46,151.82,151.75,12.04538047]
[1749217783681,49.46,151.82,151.7,2.1265]
[1749217783881,0.04185442,151.78,151.74,0.04657029]
[1749217785286,6.5858,151.75,151.74,0.04657029]
[1749217786078,12.04538047,151.76,151.65,4.378]
[1749217786282,12.04538047,151.74,151.65,53.838]
[1749217786484,12.04538047,151.74,151.65,65.88338047]
[1749217786887,12.04538047,151.74,151.66,6.5897]
[1749217787088,61.50538047,151.75,151.66,6.5897]
[1749217787291,0.04388412,151.72,151.68,0.04497832]
[1749217787886,6.5884,151.69,151.68,0.04497832]
[1749217792493,6.5882,151.7,151.68,0.04497832]
[1749217793389,6.5884,151.69,151.68,0.04497832]
[1749217793887,6.5884,151.7,151.68,0.04497832]
[1749217794288,0.04388412,151.72,151.68,0.04497832]
[1749217795493,6.63128412,151.72,151.69,6.5883]
[1749217795691,0.04388412,151.72,151.68,0.04497832]
[1749217795894,0.04388412,151.72,151.69,12.04538047]
[1749217796595,0.04388412,151.72,151.71,6.5876]
[1749217797196,0.04388412,151.72,151.7,6.5878]
[1749217797389,0.04388412,151.72,151.69,12.04538047]
[1749217797793,0.04388412,151.72,151.71,6.5876]
[1749217797990,2.2535,151.77,151.69,12.04538047]
[1749217798195,6.5857,151.76,151.71,12.04538047]
[1749217798392,47.8,151.8,151.71,12.04538047]
[1749217798594,6.5849,151.78,151.71,12.04538047]
[1749217798798,47.8,151.8,151.74,6.5858]
[1749217798992,47.8,151.8,151.71,59.84538047]
[1749217799197,6.5854,151.76,151.75,0.04949421]
[1749217799597,6.5851,151.77,151.75,0.04949421]
[1749217800288,0.04432088,151.79,151.75,0.04949421]
[1749217800495,0.04432088,151.79,151.75,12.09487468]
[1749217800792,0.04432088,151.79,151.75,0.04949421]
[1749217800998,0.04432088,151.79,151.77,12.04538047]
[1749217801395,0.04432088,151.79,151.75,12.09487468]
[1749217801794,0.04432088,151.79,151.78,6.5845]
[1749217802092,0.04432088,151.79,151.75,0.04949421]
[1749217802600,12.04538047,151.77,151.75,0.04949421]
[1749217803002,12.04538047,151.77,151.67,427.28]
[1749217803199,12.04538047,151.75,151.67,427.28]
[1749217803500,12.04538047,151.75,151.7,6.5877]
[1749217803700,12.04538047,151.75,151.67,427.28]
[1749217803896,12.04538047,151.75,151.68,6.5888]
[1749217804096,6.588,151.7,151.69,0.04595491]
[1749217804402,12.09473648,151.73,151.69,0.04595491]
[1749217804889,0.04935601,151.73,151.69,0.04595491]
[1749217805290,6.63635601,151.73,151.69,0.04595491]
[1749217805494,6.63635601,151.73,151.69,6.63415491]
[1749217805691,0.04935601,151.73,151.69,0.04595491]
[1749217806500,12.04538047,151.72,151.69,0.04595491]
[1749217806703,0.04935601,151.73,151.69,0.04595491]
[1749217806997,6.5874,151.72,151.69,6.63425491]
[1749217807705,0.04935601,151.73,151.69,6.63425491]
[1749217807706,0.04935601,151.73,151.69,0.04595491]
[1749217807892,0.04935601,151.73,151.7,12.04538047]
[1749217808092,0.04935601,151.73,151.72,6.5871]
[1749217810404,2.2269,151.78,151.76,6.5851]
[1749217810601,6.5844,151.79,151.76,6.5851]
[1749217811105,47.78,151.8,151.74,12.04538047]
[1749217811492,0.04466476,151.79,151.75,0.04640462]
[1749217811694,0.04466476,151.79,151.76,12.04538047]
[1749217812098,6.62896476,151.79,151.76,18.63048047]
[1749217812403,0.04466476,151.79,151.76,12.04538047]
[1749217812595,6.62886476,151.79,151.76,12.04538047]
[1749217812802,6.62886476,151.79,151.75,12.09178509]
[1749217813200,0.04466476,151.79,151.77,6.5846]
[1749217813400,0.04466476,151.79,151.75,12.09178509]
[1749217813602,0.04466476,151.79,151.77,12.04538047]
[1749217813802,0.04466476,151.79,151.78,6.5845]
[1749217814700,47.78,151.84,151.8,6.5834]
[1749217815096,47.78,151.84,151.77,12.04538047]
[1749217815296,47.78,151.84,151.79,6.5839]
[1749217815499,47.78,151.84,151.77,12.04538047]
[1749217815697,6.5835,151.81,151.79,0.04449869]
[1749217815910,0.04514788,151.82,151.79,0.04449869]
[1749217816703,12.09052835,151.82,151.79,0.04449869]
[1749217817006,6.5837,151.8,151.79,0.04449869]
[1749217817405,0.04514788,151.82,151.79,0.04449869]
[1749217817706,6.5837,151.8,151.79,0.04449869]
[1749217817897,0.04514788,151.82,151.79,0.04449869]
[1749217818102,6.5834,151.81,151.79,0.04449869]
[1749217818304,0.04514788,151.82,151.79,0.04449869]
[1749217819107,0.04514788,151.82,151.79,12.08987916]
[1749217819311,0.04514788,151.82,151.81,6.5832]
[1749217819501,0.04514788,151.82,151.79,12.08987916]
[1749217819704,0.04514788,151.82,151.79,0.04449869]
[1749217821009,0.04514788,151.82,151.79,6.62829869]
[1749217821308,0.04514788,151.82,151.79,0.04449869]
[1749217821608,0.04514788,151.82,151.79,6.62859869]
[1749217821813,0.04514788,151.82,151.79,0.04449869]
[1749217822616,6.62814788,151.82,151.79,0.04449869]
[1749217822916,0.04514788,151.82,151.79,0.04449869]
[1749217823114,2.1202,151.88,151.81,12.04538047]
[1749217823317,2.1202,151.88,151.83,12.04538047]
[1749217823519,2.1202,151.88,151.81,12.04538047]
[1749217823821,2.1202,151.88,151.82,6.5828]
[1749217824112,0.04262556,151.87,151.83,0.04543115]
[1749217825317,6.5814,151.86,151.83,6.62753115]
[1749217825721,0.04262556,151.87,151.83,6.62753115]
[1749217825917,0.04262556,151.87,151.84,6.5818]
[1749217826116,0.04262556,151.87,151.83,12.09081162]
[1749217826117,0.04262556,151.87,151.85,12.04538047]
[1749217826719,0.04262556,151.87,151.86,6.5811]
[1749217827420,2.2571,151.92,151.83,0.04543115]
[1749217827630,12.04538047,151.91,151.83,0.04543115]
[1749217827818,46.1,151.9,151.83,0.04543115]
[1749217828123,12.04538047,151.89,151.83,0.04543115]
[1749217828321,6.5819,151.84,151.83,0.04543115]
[1749217828722,12.04538047,151.84,151.78,46.1]
[1749217828923,6.5836,151.81,151.78,46.1]
[1749217829122,6.5836,151.81,151.77,6.5847]
[1749217829727,0.0440132,151.81,151.77,0.05050725]
[1749217830729,6.5845,151.78,151.77,0.05050725]
[1749217830929,6.5845,151.78,151.77,7.25e-06]
[1749217831118,12.04538047,151.78,151.7,46.1]
[1749217831427,12.04538047,151.79,151.71,6.5875]
[1749217831623,12.04538047,151.79,151.71,12.04538047]
[1749217831821,6.5853,151.77,151.71,12.04538047]
[1749217832018,0.04387382,151.76,151.72,0.04573997]
[1749217832823,6.5867,151.73,151.72,0.04573997]
[1749217835927,6.5864,151.74,151.72,0.04573997]
[1749217836126,2.27817382,151.76,151.72,0.04573997]
[1749217837223,0.04387382,151.76,151.72,0.04573997]
[1749217838728,6.5861,151.75,151.72,0.04573997]
[1749217838929,0.04387382,151.76,151.72,0.04573997]
[1749217839730,6.5867,151.73,151.72,0.04573997]
[1749217840430,6.5866,151.74,151.72,0.04573997]
[1749217840832,6.586,151.75,151.72,0.04573997]
[1749217841025,0.04387382,151.76,151.72,0.04573997]
[1749217841431,0.04387382,151.76,151.73,6.5864]
[1749217841632,0.04387382,151.76,151.72,12.09112044]
[1749217842022,6.62937382,151.76,151.72,18.67802044]
[1749217842225,6.62937382,151.76,151.72,0.04573997]
[1749217842226,0.04387382,151.76,151.72,0.04573997]
[1749217842425,0.04387382,151.76,151.72,12.09112044]
[1749217843131,0.04387382,151.76,151.74,6.5862]
[1749217843435,0.04387382,151.76,151.74,12.04538047]
[1749217843735,0.04387382,151.76,151.72,0.04573997]
[1749217843736,6.5858,151.75,151.72,12.09112044]
[1749217843934,6.5858,151.75,151.72,0.04573997]
[1749217844136,0.04387382,151.76,151.72,0.04573997]
[1749217844725,6.5867,151.73,151.72,0.04573997]
[1749217845335,6.5863,151.74,151.72,0.04573997]
[1749217845534,0.04387382,151.76,151.72,0.04573997]
[1749217845935,0.04387382,151.76,151.68,16.34498047]
[1749217845936,12.04538047,151.73,151.66,6.07109385]
[1749217846238,12.04538047,151.71,151.62,6.07109385]
[1749217846535,12.04538047,151.74,151.6,8.06995047]
[1749217846536,6.5904,151.65,151.6,12.04538047]
[1749217846735,12.04538047,151.67,151.59,52.19109385]
[1749217847036,0.04865713,151.65,151.61,0.04805898]
[1749217847339,6.5915,151.62,151.61,0.04805898]
[1749217848335,46.16865713,151.65,151.61,0.04805898]
[1749217848736,12.04538047,151.64,151.61,0.04805898]
[1749217848931,14.32738047,151.64,151.61,0.04805898]
[1749217849133,6.5915,151.62,151.61,0.04805898]
[1749217849540,2.201,151.63,151.55,58.16538047]
[1749217849939,14.24638047,151.63,151.55,58.16538047]
[1749217850135,14.24638047,151.63,151.55,46.12]
[1749217850335,14.24638047,151.63,151.55,58.16538047]
[1749217850533,0.04731299,151.61,151.57,0.04492734]
[1749217850840,6.5926,151.6,151.57,0.04492734]
[1749217851037,0.04731299,151.61,151.57,0.04492734]
[1749217851436,0.04731299,151.61,151.57,12.09030781]
[1749217851840,0.04731299,151.61,151.59,6.5925]
[1749217852037,0.04731299,151.61,151.57,12.09030781]
[1749217852340,0.04731299,151.61,151.57,0.04492734]
[1749217852638,0.04731299,151.61,151.58,12.04538047]
[1749217852839,0.04731299,151.61,151.57,12.09030781]
[1749217853437,0.04731299,151.61,151.59,6.5925]
[1749217853638,0.04731299,151.61,151.57,12.09030781]
[1749217853838,0.04731299,151.61,151.57,0.04492734]
[1749217854238,6.5926,151.6,151.57,0.04492734]
[1749217855336,0.04731299,151.61,151.57,6.63822734]
[1749217855542,0.04731299,151.61,151.57,0.04492734]
[1749217856440,6.63921299,151.61,151.57,6.63812734]
[1749217856944,6.63921299,151.61,151.58,6.5932]
[1749217857146,0.04731299,151.61,151.58,6.5932]
[1749217858046,6.63941299,151.61,151.57,6.63822734]